Cogmind - Beta 16 @@@ ROGUE MODE // 2025.12.10 @ 23:01:40 Player: JuustuToug Result: Destroyed by as-70260 with Assembled Gauss Rifle Performance ------------- Evolutions (3) 1500 Regions Visited (15) 3000 Robots Destroyed (175) 875 Value Destroyed (6094) 6094 Prototype IDs (40) 800 Alien Tech Used (1) 200 Bonus (4155) 4155 TOTAL SCORE: 16624 Bonus ------- High Alert Combat Kills 773 Follower Combat Kills 495 Entered Garrisons 400 Aligned with FarCom 300 Met Imprinter 300 Destroyed Z-Imprinter 1000 Triggered Deep Caves Wall 500 Exposed GOLEM Chamber 500 Acquired ECA 300 Friendly Fire -413 Cogmind --------- Core Integrity 0/700 Matter 295/300 Energy 99/100 System Corruption 2% Temperature Cool (0) Movement Core (50) Location -7/Deep Caves Parts ------- > --- POWER (1) -------- (None) > --- PROPULSION (4) --- (None) > --- UTILITY (6) ------ (None) > --- WEAPON (3) ------- (None) > --- INVENTORY (5) ---- Micro Nuclear Core Surveybot 24 Scanner Surveybot 24 Chip Enhanced Autogun Rocket Launcher Peak State ------------ > --- POWER ------------ Zionite Light DM Reactor > --- PROPULSION ------- Improved Treads Medium Treads > --- UTILITY ---------- Experimental Heat Sink High-capacity Storage Unit Improved Sensor Array Improved Signal Interpreter Zionite Weapon Casing Hacking Drone Bay > --- WEAPON ----------- AWS/Autocannon > --- INVENTORY -------- Micro Nuclear Core Surveybot 24 Scanner Surveybot 24 Chip Encrypted Comm Array Particle Cannon Heavy Particle Cannon Ion Cannon Plasma Cannon Heavy Ion Cannon Enhanced Autogun Enhanced Autogun Enhanced Autogun Enhanced Autogun Enhanced Autogun Gauss Rifle Rocket Launcher Power Maul [Rating: 80] Favorites ----------- Power Improved Deuterium Engine Engine Improved Deuterium Engine Power Core Micro Nuclear Core Reactor Zionite Light DM Reactor Propulsion Light Treads Treads Light Treads Flight Unit Improved Flight Unit Utility Hacking Suite Device Improved Sensor Array Storage High-capacity Storage Unit Processor Improved Signal Interpreter Hackware Hacking Suite Protection Improved Light Armor Plating Weapon AWS/Autocannon Energy Gun Advanced Beam Rifle Energy Cannon Heavy Particle Cannon Ballistic Gun Shotgun Ballistic Cannon AWS/Autocannon Launcher Rocket Launcher Impact Weapon Power Maul Slashing Weapon Katana Build | -11 -10 -10 -9 -9 -9 -8 -8 -8 -8 -8 -7 -7 -7 -7 -7 ------- Run | Yrd Mat Min Mat Min Exi Min Mat Gar Mat Gar Fac Low Low Zio Dee Slots Evolved 6 | . . . 2 . . . 2 . . . 2 . . . . Power . | . . . . . . . . . . . . . . . . Propulsion 2 | . . . . . . . 1 . . . 1 . . . . Utility 3 | . . . 2 . . . . . . . 1 . . . . Weapon 1 | . . . . . . . 1 . . . . . . . . Parts Attached 106 | 7 8 . 19 3 2 . 16 9 7 9 8 6 . 4 8 Power 11 | 1 1 . 2 . . . 1 3 . 1 1 . . . 1 Engine 8 | 1 1 . 2 . . . 1 2 . . 1 . . . . Core 2 | . . . . . . . . 1 . 1 . . . . . Reactor 1 | . . . . . . . . . . . . . . . 1 Propulsion 35 | 2 1 . 5 2 . . 9 4 5 3 1 1 . 1 1 Treads 34 | 2 . . 5 2 . . 9 4 5 3 1 1 . 1 1 Leg . | . . . . . . . . . . . . . . . . Wheel . | . . . . . . . . . . . . . . . . Hover . | . . . . . . . . . . . . . . . . Flight 1 | . 1 . . . . . . . . . . . . . . Utility 30 | 2 3 . 5 . 2 . 2 . . 2 3 3 . 3 5 Device 13 | 1 . . 4 . . . 1 . . 1 . 2 . 2 2 Storage 6 | 1 1 . . . 2 . 1 . . . . . . . 1 Processor 2 | . 1 . . . . . . . . . . 1 . . . Hackware 4 | . 1 . 1 . . . . . . . 2 . . . . Protection 5 | . . . . . . . . . . 1 1 . . 1 2 Artifact . | . . . . . . . . . . . . . . . . Weapon 30 | 2 3 . 7 1 . . 4 2 2 3 3 2 . . 1 Energy Gun 5 | 1 . . 1 . . . 1 . 1 1 . . . . . Energy Cannon 7 | . 1 . 3 . . . . 1 . . . 1 . . 1 Ballistic Gun 13 | 1 1 . 3 1 . . 2 . 1 1 3 . . . . Ballistic Cannon 1 | . . . . . . . . . . . . 1 . . . Launcher 2 | . 1 . . . . . 1 . . . . . . . . Special Weapon . | . . . . . . . . . . . . . . . . Impact Weapon 1 | . . . . . . . . . . 1 . . . . . Slashing Weapon 1 | . . . . . . . . 1 . . . . . . . Piercing Weapon . | . . . . . . . . . . . . . . . . Special Melee Weapon . | . . . . . . . . . . . . . . . . Unidentified Prototypes 11 | . 1 . 2 . . . 1 . . . 1 1 . . 5 Parts Lost 22 | . . . . . . 1 . 2 . 6 2 . . . 11 Power 3 | . . . . . . . . 1 . 1 . . . . 1 Propulsion 8 | . . . . . . . . . . 3 . . . . 5 Utility 7 | . . . . . . . . . . 2 . . . . 5 Weapon 4 | . . . . . . 1 . 1 . . 2 . . . . Highest Loss Streak 5 | . . . . . . 1 . 1 . 3 1 . . . 5 To Critical Strikes . | . . . . . . . . . . . . . . . . Average Backups 16 | 1 12 15 14 15 15 16 17 17 17 16 16 19 20 19 17 Power 1 | . 1 1 1 1 1 1 1 . 1 . 1 1 1 1 1 Propulsion 2 | . 2 3 4 5 5 5 6 5 5 4 1 1 1 1 . Utility 4 | . 2 4 3 2 2 3 3 3 4 4 8 7 7 4 2 Weapon 8 | . 5 6 6 6 7 7 7 8 7 6 6 8 10 11 13 Tool/Special . | . . . . . . . . . . . . . . . . Unused Backups 36 | . 1 1 8 1 . . . 2 1 1 8 . . 2 11 Power 3 | . . . 1 . . . . . . 1 . . . . 1 Propulsion 3 | . . . 3 . . . . . . . . . . . . Utility 13 | . . . 3 1 . . . . . . 5 . . 2 2 Weapon 16 | . 1 1 1 . . . . 2 1 . 3 . . . 7 Tool/Special 1 | . . . . . . . . . . . . . . . 1 Average Slot Usage (%) 93 | . 99 100 98 100 100 100 99 99 100 99 99 86 85 79 74 Engine 8 | . 14 14 11 11 11 11 9 4 9 5 2 7 7 7 2 Treads 25 | . 27 28 21 22 22 22 27 27 27 26 29 29 28 28 18 Device 8 | . 2 . 12 11 11 11 9 9 9 8 . 6 7 7 13 Storage 9 | . 14 14 11 11 11 11 9 9 9 9 7 7 7 7 7 Processor 2 | . 3 . . . . . . . . . . 1 7 7 7 Hackware 14 | . 8 14 20 22 22 22 18 18 18 17 22 22 21 1 . Protection 3 | . . . . . . . . . . . 7 . . 13 13 Energy Gun 1 | . . . . . . . 5 3 8 10 2 . . . . Energy Cannon 6 | . 5 14 10 11 11 11 3 13 9 3 7 1 . . . Ballistic Gun 8 | . 21 14 10 10 11 10 17 8 9 9 12 2 . . . Ballistic Cannon 2 | . . . . . . . . . . . . 5 7 6 7 Peak Build Rating 80 | 7 12 12 22 23 27 27 36 36 34 37 50 67 67 71 80 Average Rating 39 | 5 10 12 19 21 24 26 33 33 32 32 46 61 67 65 72 On Entrance 32 | . 7 12 12 21 23 27 26 35 31 33 37 50 67 67 71 Avg Prop Armor Cover (%) 13 | . 13 . . . . . . . . . . . . . . Naked Turns 4 | . . . . . . . . . . . . . . . 4 Heaviest Build 123 | 12 30 29 36 36 55 57 58 62 62 61 71 111 111 123 123 Greatest Support 107 | 40 40 40 40 40 40 40 60 60 60 79 107 107 99 104 104 Greatest Overweight (x) 4 | . 3 . 1 . 1 1 . 1 1 1 . 1 1 1 4 Average Overweight (x) . | . . . . . . 1 . . 1 . . . 1 . 1 Largest Inventory Capacity 20 | 8 15 15 15 15 20 20 20 20 20 20 20 20 20 20 20 Average Capacity 18 | 7 13 15 15 15 18 20 20 20 20 20 20 20 20 20 19 Most Carried 20 | 2 15 15 15 15 19 19 20 20 20 20 20 20 20 20 19 Average Carried 17 | 1 12 14 14 14 16 18 19 19 19 18 18 19 20 19 17 Final Capacity 20 | 8 15 15 15 15 20 20 20 20 20 20 20 20 20 20 5 Final Carried 20 | 2 15 15 15 15 19 18 20 20 20 15 20 20 20 19 5 Class Distribution -------------------- 21% | Scavenger-Skirmisher 17% | Mutant 16% | Hacker-Skirmisher 15% | Tank 10% | Scavenger-Mutant 10% | Hacker-Mutant 7% | Skirmisher Dominant Class ---------------- Mutant | -10/Materials Mutant | -10/Mines Scavenger-Mutant | -9/Materials Scavenger-Mutant | -9/Mines Hacker-Mutant | -9/Exiles Hacker-Mutant | -8/Mines Scavenger-Skirmisher | -8/Materials Scavenger-Skirmisher | -8/Garrison Scavenger-Skirmisher | -8/Materials Scavenger-Skirmisher | -8/Garrison Hacker-Skirmisher | -7/Factory Hacker-Skirmisher | -7/Lower Caves Hacker-Skirmisher | -7/Lower Caves Tank | -7/Zion Skirmisher | -7/Deep Caves Resources | -11 -10 -10 -9 -9 -9 -8 -8 -8 -8 -8 -7 -7 -7 -7 -7 ----------- Run | Yrd Mat Min Mat Min Exi Min Mat Gar Mat Gar Fac Low Low Zio Dee Matter Collected 3640 | 238 513 16 375 152 . 145 669 571 141 299 231 110 . 70 110 Remotely . | . . . . . . . . . . . . . . . . Salvage Created 5841 | 37 683 . 967 214 . 184 1198 646 349 586 514 24 39 . 400 Parts 339 | 6 47 . 57 10 . 22 64 38 26 28 28 2 1 . 10 Haulers Intercepted 9 | . 2 . 2 . . . 4 . 1 . . . . . . Recyclers Shooed 3 | . 1 . 1 . . . 1 . . . . . . . . Parts Field Recycled . | . . . . . . . . . . . . . . . . Retrieved Matter . | . . . . . . . . . . . . . . . . Parts Self-Destructed 2 | . . . . . . . . . . . . 1 1 . . Prevented 1 | . . . . . . . . . . . . 1 . . . Parts Restored . | . . . . . . . . . . . . . . . . Kills | -11 -10 -10 -9 -9 -9 -8 -8 -8 -8 -8 -7 -7 -7 -7 -7 ------- Run | Yrd Mat Min Mat Min Exi Min Mat Gar Mat Gar Fac Low Low Zio Dee Combat Hostiles Destroyed 136 | . 14 . 14 6 . 12 18 21 5 21 7 1 1 . 16 Melee 2 | . . . . . . . . . . 2 . . . . . Guns 41 | . 11 . 2 1 . . 13 4 3 5 2 . . . . Cannons 44 | . 3 . 8 2 . . 2 6 2 1 2 1 1 . 16 AOE 46 | . . . 4 3 . 12 3 11 . 10 3 . . . . Classes Destroyed 16 | 1 6 . 3 1 . . 2 1 . . . . . . 2 Worker 10 | . . . 2 . . 2 4 . . . 2 . . . . Builder 8 | . 3 . 1 . . 1 2 . 1 . . . . . . Tunneler 4 | 2 1 . . . . . 1 . . . . . . . . Hauler 9 | . 2 . 2 . . . 4 . 1 . . . . . . Recycler 10 | . . . 3 . . 2 3 . . . 2 . . . . Operator 4 | . 1 . 2 . . . . . . . 1 . . . . Watcher 3 | . 1 . 2 . . . . . . . . . . . . Swarmer 37 | . 3 . 4 . . 12 3 4 . 8 3 . . . . Grunt 48 | . 11 . 5 5 . . 7 12 1 6 . . 1 . . Brawler 1 | . . . . . . . 1 . . . . . . . . Duelist 1 | . . . . 1 . . . . . . . . . . . Sentry 19 | . . . 5 . . . 6 3 2 . 3 . . . . Hunter 4 | . . . . . . . 1 1 2 . . . . . . Programmer 10 | . . . . . . . . 1 . 7 1 1 . . . Z-Technician 2 | . . . . . . . . . . . . . . . 2 Z-Light 5 | . . . . . . . . . . . . . . . 5 Assembled 10 | . . . . . . . . . . . . . . . 10 Savage 1 | . . . . . . . . . . . . . . . 1 Best Kill Streak 10 | 2 8 . 5 3 . 6 6 5 2 10 4 1 1 . 4 Combat Bots Only 10 | . 7 . 4 3 . 6 5 5 2 10 3 1 1 . 4 Max Kills in Single Turn 4 | 1 2 . 2 3 . 4 2 3 1 3 3 1 1 . 1 Gunslinging 1 | . 1 . . . . . 1 . . . . . . . . Exploded 3 | . . . 2 3 . 2 2 3 . 3 3 . . . . Melee 1 | . . . . . . . . . . 1 . . . . . Uniques/NPCs Destroyed 1 | . . . . . . . . . . . . . . . 1 Z-Imprinter (-7/Deep Caves) Combat | -11 -10 -10 -9 -9 -9 -8 -8 -8 -8 -8 -7 -7 -7 -7 -7 -------- Run | Yrd Mat Min Mat Min Exi Min Mat Gar Mat Gar Fac Low Low Zio Dee Hostile Shots Fired 669 | . 56 . 52 17 . 19 78 70 44 81 96 . . . 156 Missed 201 | . 15 . 17 7 . 7 26 24 10 21 28 . . . 46 Hits 468 | . 41 . 35 10 . 12 52 46 34 60 68 . . . 110 Melee 4 | . . . . . . . . . . . . . . . 4 Projectile 464 | . 41 . 35 10 . 12 52 46 34 60 68 . . . 106 AOE 1 | . . . . . . . . . . 1 . . . . . Critical Strikes 9 | . . . . . . . 1 2 1 4 . . . . 1 Part Disruptions 1 | . . . . . . . . . . . . . . . 1 Damage Taken 8022 | . 497 . 494 160 . 208 765 757 549 957 662 . . 46 2927 Core 1433 | . 127 . 75 11 . 50 121 196 44 99 58 . . 35 617 Absorbed by Shields . | . . . . . . . . . . . . . . . . Redirected to Shielding 151 | . . . . . . . . . . . . . . . 151 Regen/Repaired (Parts) 200 | . 69 . 96 . . . . . 35 . . . . . . Core Remaining (%) 57 | 100 . 49 . . . 66 . . . 16 . . . . . Volleys Fired 360 | 5 59 . 60 13 . 18 52 84 15 30 23 . . . 1 Largest 3 | 2 2 . 2 2 . 2 3 3 3 3 3 . . . 1 Hottest 164 | 60 83 . 91 91 . 92 115 164 164 154 154 . . . 65 Shots Fired 788 | 10 110 . 114 24 . 27 145 124 43 72 55 1 2 . 61 Gun 489 | 10 96 . 54 11 . 9 132 55 28 59 35 . . . . Cannon 255 | . 11 . 58 11 . 9 8 54 15 8 17 1 2 . 61 Launcher 44 | . 3 . 2 2 . 9 5 15 . 5 3 . . . . Special . | . . . . . . . . . . . . . . . . Kinetic 418 | 5 96 . 54 11 . 9 93 23 14 21 29 1 2 . 60 Thermal 326 | 5 11 . 58 11 . 9 47 86 29 46 23 . . . 1 Explosive 44 | . 3 . 2 2 . 9 5 15 . 5 3 . . . . Electromagnetic . | . . . . . . . . . . . . . . . . Robot Hit Streak 27 | 4 17 . 8 8 . 5 13 27 12 11 18 4 6 . 14 Robot Miss Streak 7 | 1 7 . 4 2 . 3 6 1 4 3 3 . . . 3 Penetration Max 1 | . . . . . . . 1 1 . . 1 . . . . Secondary Targets 6 | . 3 . . . . . 3 . . . . . . . . Max Gunslinging Chain 1 | . 1 . . . . . 1 . . . . . . . . Autonomous 63 | . . . . . . . . . . . . 1 2 . 60 Shots Hit Robots 464 | 7 73 . 69 17 . 15 89 46 20 54 31 1 2 . 40 Core Hits 280 | 2 36 . 37 7 . 21 51 45 12 29 19 . 1 . 20 Critical Kills 2 | 1 1 . . . . . . . . . . . . . . Critical Parts Destroyed 5 | . . . . . . . 1 . . 4 . . . . . Critical Strikes 24 | 1 1 . . . . . 6 . 3 9 . . . . 4 Burn 13 | . . . . . . . 5 . 3 5 . . . . . Destroy 3 | 1 1 . . . . . 1 . . . . . . . . Blast 4 | . . . . . . . . . . . . . . . 4 Smash 4 | . . . . . . . . . . 4 . . . . . Melee Attacks 43 | . . . . . . . . 17 . 24 . 1 . 1 . Impact 26 | . . . . . . . . . . 24 . 1 . 1 . Slashing 17 | . . . . . . . . 17 . . . . . . . Piercing . | . . . . . . . . . . . . . . . . Sneak Attacks . | . . . . . . . . . . . . . . . . Combat Hostiles . | . . . . . . . . . . . . . . . . Follow-up Attacks . | . . . . . . . . . . . . . . . . Damage Inflicted 16660 | 83 1167 32 1475 560 . 1077 2320 2571 478 2077 862 108 173 11 3666 Guns 5265 | 83 918 . 454 118 . 132 1698 382 293 741 446 . . . . Cannons 6368 | . 158 . 769 185 . 184 122 498 175 124 206 108 173 . 3666 Explosions 4191 | . 41 . 232 240 . 756 500 1683 . 542 197 . . . . Melee 670 | . . . . . . . . . . 670 . . . . . Ramming 166 | . 50 32 20 17 . 5 . 8 10 . 13 . . 11 . Kinetic 7725 | 36 918 . 454 118 . 132 1218 277 113 174 364 108 173 . 3640 Thermal 3949 | 47 158 . 769 185 . 225 602 603 355 691 288 . . . 26 Explosive 4150 | . 41 . 232 240 . 715 500 1683 . 542 197 . . . . Electromagnetic . | . . . . . . . . . . . . . . . . Impact 670 | . . . . . . . . . . 670 . . . . . Slashing . | . . . . . . . . . . . . . . . . Piercing . | . . . . . . . . . . . . . . . . Highest Corruption 8 | . . . . . . . 1 1 1 8 . . . . 2 Average Corruption 1 | . . . . . . . 1 1 1 3 . . . . 2 Corruption Purged . | . . . . . . . . . . . . . . . . Corruption Blocked . | . . . . . . . . . . . . . . . . Effects 34 | . . . . . . . 4 13 5 12 . . . . . Message Errors 9 | . . . . . . . . 2 1 6 . . . . . Matter Fused 8 | . . . . . . . . 4 1 3 . . . . . Heat Flow Errors 3 | . . . . . . . 1 2 . . . . . . . Energy Discharges 8 | . . . . . . . 1 2 2 3 . . . . . Data Loss (minor) 4 | . . . . . . . 1 2 1 . . . . . . Misfires 2 | . . . . . . . 1 1 . . . . . . . Overload Shots . | . . . . . . . . . . . . . . . . Overflow Damage 955 | . . . 52 . . 43 . 41 . 313 6 63 6 . 431 Projectiles 529 | . . . . . . 2 . 20 . 7 . 63 6 . 431 Explosions 120 | . . . 52 . . 41 . 21 . . 6 . . . . Melee 306 | . . . . . . . . . . 306 . . . . . Knockbacks 17 | . . 1 . . . . . 1 . . . . 1 . 14 Impact 2 | . . 1 . . . . . 1 . . . . . . . Kinetic 13 | . . . . . . . . . . . . . 1 . 12 Secondary 2 | . . . . . . . . . . . . . . . 2 Self-Inflicted Damage 369 | . 55 . . 53 . 114 . 116 . . 20 . . 11 . Shots 12 | . 2 . . 2 . 4 . 3 . . 1 . . . . Rammed 29 | . 10 9 2 2 . 1 . 1 3 . 1 . . . . Targets Rammed 31 | . 11 9 2 2 . 1 . 1 3 . 2 . . . . Kicked . | . . . . . . . . . . . . . . . . Crushed 2 | . 1 . . . . . . . . . 1 . . . . Highest Temperature 317 | . 201 . 2 . . . 169 264 63 317 264 . . . 20 Average Temperature 67 | . 81 . 2 . . . 66 40 22 58 108 . . . 10 Received Heat Transfer 1960 | . 216 . 138 60 . . 234 252 81 156 141 . . . 682 Siege Activations . | . . . . . . . . . . . . . . . . Martial Activations . | . . . . . . . . . . . . . . . . Shielding Activations . | . . . . . . . . . . . . . . . . Robots Disrupted . | . . . . . . . . . . . . . . . . Combat Hostiles . | . . . . . . . . . . . . . . . . Robots Corrupted 3 | . . . . . . . . . . 3 . . . . . Combat Hostiles 3 | . . . . . . . . . . 3 . . . . . Parts Fried 3 | . . . . . . . . . . 3 . . . . . Impact Corruptions 13 | . . . . . . . . . . 13 . . . . . Robots Melted . | . . . . . . . . . . . . . . . . Combat Hostiles . | . . . . . . . . . . . . . . . . Parts Melted 14 | . 1 . . 1 . . 1 1 1 8 1 . . . . Heat Transferred 8068 | 100 333 . 1554 333 . 383 1480 1036 814 1517 481 . . . 37 Parts Sabotaged . | . . . . . . . . . . . . . . . . Parts Stolen . | . . . . . . . . . . . . . . . . Parts Stripped . | . . . . . . . . . . . . . . . . Power Chain Reactions . | . . . . . . . . . . . . . . . . Alert | -11 -10 -10 -9 -9 -9 -8 -8 -8 -8 -8 -7 -7 -7 -7 -7 ------- Run | Yrd Mat Min Mat Min Exi Min Mat Gar Mat Gar Fac Low Low Zio Dee Maximum Alert Level 4 | . . . 1 . . 1 1 4 3 3 2 . . . . Low Security (%) 62 | 100 100 100 95 100 . 99 92 . . . . . . . . Level 1 7 | . . . 4 . . . 7 37 . . . . . . . Level 2 20 | . . . . . . . . 30 92 38 100 . . . . Level 3 8 | . . . . . . . . 25 7 61 . . . . . Level 4 1 | . . . . . . . . 6 . . . . . . . Level 5 . | . . . . . . . . . . . . . . . . High Security . | . . . . . . . . . . . . . . . . Max Security . | . . . . . . . . . . . . . . . . Peak Influence 1127 | 10 150 26 215 155 . 207 358 1127 813 1059 585 . . . . Initial 553 | . . 20 . 67 . . 65 224 549 497 553 . . . . Average 255 | 1 43 . 46 68 . 73 66 598 583 841 521 . . . . Influence Increases 4781 | 10 473 6 514 158 . 468 634 923 510 638 397 30 20 . . Destroy 0b10 Robot/C 2680 | . 280 . 280 120 . 240 360 480 260 440 180 20 20 . . Destroy 0b10 Robot/NC 260 | 10 40 . 65 . . 25 70 5 20 . 25 . . . . Destroy Leader 548 | . 76 . 80 20 . 40 118 30 104 20 50 10 . . . Allied During Kill 84 | . . . . . . . . 20 46 6 12 . . . . Successful Hack 176 | . 25 6 12 . . . 19 12 12 . 90 . . . . Disable Machine 195 | . 30 . 15 . . 30 15 . 60 30 15 . . . . Anti-Garrison Action 400 | . . . . . . . . 300 . 100 . . . . . Destroy Structure 318 | . 22 . 17 18 . 88 37 76 8 27 25 . . . . Lose Combat Pursuer 120 | . . . 45 . . 45 15 . . 15 . . . . . Influence Decreases 4781 | 10 420 59 341 331 . 299 457 142 872 348 936 546 20 . . Entered New Map 1905 | . . 33 . 106 . . 104 122 578 268 502 192 . . . Time Decay 2656 | 10 420 26 341 225 . 289 343 . 254 . 374 354 20 . . Lost Part 110 | . . . . . . 10 . 20 . 60 20 . . . . Lost Ally 110 | . . . . . . . 10 . 40 20 40 . . . . Squads Dispatched 19 | . 4 . 3 . . . 3 . 7 . 2 . . . . Investigation 7 | . 3 . . . . . 1 . 3 . . . . . . Extermination 1 | . . . . . . . . . . . 1 . . . . Reinforcement 8 | . 1 . 3 . . . 1 . 2 . 1 . . . . Assault . | . . . . . . . . . . . . . . . . Garrison 3 | . . . . . . . 1 . 2 . . . . . . Intercept . | . . . . . . . . . . . . . . . . Searches Triggered . | . . . . . . . . . . . . . . . . Construction Impeded 2 | . . . 1 . . . . . 1 . . . . . . Haulers Reinforced 1 | . . . . . . . . . . . 1 . . . . Active Scanning Responses . | . . . . . . . . . . . . . . . . Cargo Convoy Interrupts . | . . . . . . . . . . . . . . . . Stealth | -11 -10 -10 -9 -9 -9 -8 -8 -8 -8 -8 -7 -7 -7 -7 -7 --------- Run | Yrd Mat Min Mat Min Exi Min Mat Gar Mat Gar Fac Low Low Zio Dee Distress Signals 5 | . . . 2 . . . . . 3 . . . . . . Communications Jammed . | . . . . . . . . . . . . . . . . Distress Signals . | . . . . . . . . . . . . . . . . Times Spotted 237 | . 35 . 34 7 . 13 24 25 17 21 10 1 1 . 49 Peak Tracking Total 31 | . 9 . 5 3 . 4 7 6 4 7 4 . . . 31 Tactical Retreats 6 | . . . 2 . . 2 1 . . 1 . . . . . Traps | -11 -10 -10 -9 -9 -9 -8 -8 -8 -8 -8 -7 -7 -7 -7 -7 ------- Run | Yrd Mat Min Mat Min Exi Min Mat Gar Mat Gar Fac Low Low Zio Dee Traps Triggered 17 | . 2 . 1 . . . 2 7 2 3 . . . . . Indirectly . | . . . . . . . . . . . . . . . . Trap Hack Attempts . | . . . . . . . . . . . . . . . . Triggered . | . . . . . . . . . . . . . . . . Disarmed . | . . . . . . . . . . . . . . . . Reprogrammed . | . . . . . . . . . . . . . . . . Reused . | . . . . . . . . . . . . . . . . Traps Extracted . | . . . . . . . . . . . . . . . . Installed . | . . . . . . . . . . . . . . . . Triggered . | . . . . . . . . . . . . . . . . Machines | -11 -10 -10 -9 -9 -9 -8 -8 -8 -8 -8 -7 -7 -7 -7 -7 ---------- Run | Yrd Mat Min Mat Min Exi Min Mat Gar Mat Gar Fac Low Low Zio Dee Machines Disabled 23 | . 2 . 1 . . 2 1 5 4 4 1 . . . 3 Max in Single Turn 2 | . 1 . 1 . . 1 1 1 2 1 1 . . . 1 Garrison Relay 6 | . . . . . . . . 4 . 2 . . . . . Machines Repaired . | . . . . . . . . . . . . . . . . Machines Dismantled . | . . . . . . . . . . . . . . . . Machines Sabotaged . | . . . . . . . . . . . . . . . . Overloaded Fab Kills . | . . . . . . . . . . . . . . . . Hacking | -11 -10 -10 -9 -9 -9 -8 -8 -8 -8 -8 -7 -7 -7 -7 -7 --------- Run | Yrd Mat Min Mat Min Exi Min Mat Gar Mat Gar Fac Low Low Zio Dee Machines Accessed 43 | . 9 2 11 . 2 . 5 2 6 . 5 . 1 . . Terminals 30 | . 7 1 7 . . . 4 2 4 . 5 . . . . Fabricators . | . . . . . . . . . . . . . . . . Repair Stations 4 | . 1 . 2 . . . . . 1 . . . . . . Recycling Units 1 | . 1 . . . . . . . . . . . . . . Scanalyzers 2 | . . . 2 . . . . . . . . . . . . Garrison Access 2 | . . . . . . . 1 . 1 . . . . . . Total Hacks 124 | . 31 2 29 . 2 . 22 4 16 . 17 . 1 . . Successful 80 | . 18 2 22 . 2 . 17 1 8 . 9 . 1 . . Failed 42 | . 12 . 6 . . . 5 3 8 . 8 . . . . Catastrophic 3 | . 1 . 1 . . . 1 . . . . . . . . Database Lockouts 2 | . 1 . 1 . . . . . . . . . . . . Manual 91 | . 26 2 12 . 1 . 19 1 12 . 13 . . 5 . Terminals 104 | . 28 1 20 . . . 21 4 13 . 17 . . . . Fabricators . | . . . . . . . . . . . . . . . . Repair Stations 8 | . 2 . 4 . . . . . 2 . . . . . . Recycling Units 1 | . 1 . . . . . . . . . . . . . . Scanalyzers 5 | . . . 5 . . . . . . . . . . . . Garrison Access 2 | . . . . . . . 1 . 1 . . . . . . Terminal Hacks 32 | . 6 2 6 . 2 . 8 1 3 . 3 . 1 . . Record 1 | . . . . . 1 . . . . . . . . . . Part Schematic 4 | . 1 1 1 . . . . . 1 . . . . . . Prototype ID Bank 6 | . 4 . . . . . 2 . . . . . . . . Open Door 2 | . . 1 . . . . . . . . . . 1 . . Level Access Points 3 | . . . 1 . . . 2 . . . . . . . . Branch Access Points 4 | . 1 . 1 . . . 1 . . . 1 . . . . Terminal Index 4 | . . . 1 . . . 1 . 1 . 1 . . . . Fabricator Index 1 | . . . . . . . . . . . 1 . . . . Garrison Index 2 | . . . . . . . 1 . 1 . . . . . . Recall Reinforcements 1 | . . . . . . . 1 . . . . . . . . Registered Components 1 | . . . 1 . . . . . . . . . . . . Zone Layout 1 | . . . 1 . . . . . . . . . . . . Security Stations 1 | . . . . . . . . 1 . . . . . . . Proto ID Catalog 1 | . . . . . 1 . . . . . . . . . . Fabricator Hacks . | . . . . . . . . . . . . . . . . Repair Station Hacks 8 | . 2 . 4 . . . . . 2 . . . . . . Scan Component 4 | . 1 . 2 . . . . . 1 . . . . . . Repair 4 | . 1 . 2 . . . . . 1 . . . . . . Recycling Unit Hacks . | . . . . . . . . . . . . . . . . Scanalyzer 4 | . . . 4 . . . . . . . . . . . . Insert Component 1 | . . . 1 . . . . . . . . . . . . Analyze 1 | . . . 1 . . . . . . . . . . . . Retrieve Study 2 | . . . 2 . . . . . . . . . . . . Garrison Access Hacks 2 | . . . . . . . 1 . 1 . . . . . . Unlock Access 2 | . . . . . . . 1 . 1 . . . . . . Unauthorized Hacks 34 | . 10 . 8 . . . 8 . 2 . 6 . . . . Terminals 34 | . 10 . 8 . . . 8 . 2 . 6 . . . . Assimilate 1 | . . . . . . . 1 . . . . . . . . Botnet 11 | . 3 . 2 . . . 3 . 2 . 1 . . . . Operators 3 | . 1 . 1 . . . 1 . . . . . . . . Skim 19 | . 6 . 5 . . . 3 . . . 5 . . . . Fabricators . | . . . . . . . . . . . . . . . . Repair Stations . | . . . . . . . . . . . . . . . . Recycling Units . | . . . . . . . . . . . . . . . . Scanalyzers . | . . . . . . . . . . . . . . . . Garrison Access . | . . . . . . . . . . . . . . . . Data Cores Recovered 1 | . . . . . . . . . . . 1 . . . . Used . | . . . . . . . . . . . . . . . . Hacking Detections 36 | . 9 1 10 . . . 4 2 5 . 5 . . . . Full Trace Events 2 | . 1 . . . . . . . 1 . . . . . . Feedback Events . | . . . . . . . . . . . . . . . . Feedback Blocked . | . . . . . . . . . . . . . . . . Robot Schematics Acquired 2 | . . . . . . . . . . . . . . 2 . Robots Built . | . . . . . . . . . . . . . . . . Authchips . | . . . . . . . . . . . . . . . . Time . | . . . . . . . . . . . . . . . . Total Robot Build Rating . | . . . . . . . . . . . . . . . . Part Schematics Acquired 18 | . 1 1 1 . . . . . . . . . . 15 . Parts Built . | . . . . . . . . . . . . . . . . Authchips . | . . . . . . . . . . . . . . . . Time . | . . . . . . . . . . . . . . . . Total Part Build Rating . | . . . . . . . . . . . . . . . . Part Studies Acquired 2 | . . . 2 . . . . . . . . . . . . Parts Repaired 4 | . 1 . 2 . . . . . 1 . . . . . . Time 128 | . 26 . 70 . . . . . 32 . . . . . . Parts Recycled . | . . . . . . . . . . . . . . . . Recycled Matter . | . . . . . . . . . . . . . . . . Retrieved Matter . | . . . . . . . . . . . . . . . . Retrieved Components . | . . . . . . . . . . . . . . . . Parts Scanalyzed 1 | . . . 1 . . . . . . . . . . . . Part Schematics Acquired 1 | . . . 1 . . . . . . . . . . . . Parts Damaged . | . . . . . . . . . . . . . . . . Bothacking | -11 -10 -10 -9 -9 -9 -8 -8 -8 -8 -8 -7 -7 -7 -7 -7 ------------ Run | Yrd Mat Min Mat Min Exi Min Mat Gar Mat Gar Fac Low Low Zio Dee Used RIF Installer . | . . . . . . . . . . . . . . . . Robots Hacked . | . . . . . . . . . . . . . . . . Non-combat . | . . . . . . . . . . . . . . . . Combat . | . . . . . . . . . . . . . . . . Robot Hacks Applied . | . . . . . . . . . . . . . . . . Relay Couplers Released 29 | . . . . . . . . 21 . 8 . . . . . Machine Destruction 26 | . . . . . . . . 18 . 8 . . . . . Programmers 3 | . . . . . . . . 3 . . . . . . . Fabnet Peak Effective % . | . . . . . . . . . . . . . . . . Robots Rewired 5 | . . . . . . . . 2 . 3 . . . . . Allies Hacked 1 | . . . . . . . . . . 1 . . . . . Hacks Repelled . | . . . . . . . . . . . . . . . . Allies | -11 -10 -10 -9 -9 -9 -8 -8 -8 -8 -8 -7 -7 -7 -7 -7 -------- Run | Yrd Mat Min Mat Min Exi Min Mat Gar Mat Gar Fac Low Low Zio Dee Total Allies 11 | . . 1 . 2 . . 1 2 . 3 . . . 2 . Largest Group 3 | . . 1 1 2 2 . 1 2 2 3 2 . . 2 2 Highest-Rated Group 59 | . . 31 31 43 43 . 10 42 42 48 32 . . 59 59 Highest-Rated Ally 39 | . . 31 31 31 31 . 10 21 21 16 16 . . 39 39 Initial Warlord ECA Mod 11 | . . . . . . . . . 6 6 11 11 11 11 11 Total Orders . | . . . . . . . . . . . . . . . . Ally Attacks 113 | . . . 7 . . . . 11 32 10 14 . . . 39 Total Damage 1829 | . . . 22 . . . . 305 709 141 156 . . . 496 Kills 21 | . . . 1 . . . . 3 10 1 2 . . . 4 Allies Corrupted 1 | . . . . . . . . . . 1 . . . . . Allies Melted . | . . . . . . . . . . . . . . . . Intel | -11 -10 -10 -9 -9 -9 -8 -8 -8 -8 -8 -7 -7 -7 -7 -7 ------- Run | Yrd Mat Min Mat Min Exi Min Mat Gar Mat Gar Fac Low Low Zio Dee Active Infowar (turns) 7098 | 47 817 . 193 . . . . . . . . 1410 573 2195 1863 Sensors 6041 | . . . . . . . . . . . . 1410 573 2195 1863 Terrain 193 | . . . 193 . . . . . . . . . . . . Seismic 360 | 47 313 . . . . . . . . . . . . . . T.N.C. 504 | . 504 . . . . . . . . . . . . . . Jamming 594 | . . . . . . . . . . . . . . 1 593 Robot Analysis Total . | . . . . . . . . . . . . . . . . Derelict Logs Recovered 5 | . . 1 . 2 . . . . . . . 1 . 1 . Drone Launches . | . . . . . . . . . . . . . . . . Drone Recoveries . | . . . . . . . . . . . . . . . . Exploration | -11 -10 -10 -9 -9 -9 -8 -8 -8 -8 -8 -7 -7 -7 -7 -7 ------------- Run | Yrd Mat Min Mat Min Exi Min Mat Gar Mat Gar Fac Low Low Zio Dee Turns Passed 17695 | 120 1937 914 1362 629 781 915 1069 1764 553 726 864 1421 573 2195 1872 Spaces Moved 7798 | 49 978 561 653 359 373 355 414 690 188 308 462 633 239 902 634 Core 6 | 2 1 . . . . . . . . . . . . . 3 Treads 7792 | 47 977 561 653 359 373 355 414 690 188 308 462 633 239 902 631 Legs . | . . . . . . . . . . . . . . . . Wheels . | . . . . . . . . . . . . . . . . Hover . | . . . . . . . . . . . . . . . . Flight . | . . . . . . . . . . . . . . . . Fastest Speed 50 | 50 160 160 160 160 160 240 160 163 240 160 160 160 240 160 50 Average Speed 199 | 155 160 160 160 160 208 240 161 205 240 167 160 219 240 239 288 Slowest Speed 480 | 160 200 160 240 160 240 240 163 243 243 240 160 240 240 240 480 Overloaded Moves . | . . . . . . . . . . . . . . . . Propulsion Burnouts . | . . . . . . . . . . . . . . . . Robots Hopped . | . . . . . . . . . . . . . . . . Potential Cave-ins . | . . . . . . . . . . . . . . . . Cave-ins Triggered . | . . . . . . . . . . . . . . . . Exploration Rate (%) 60 | 4 97 98 80 78 69 56 47 77 34 40 15 75 44 87 70 Regions Visited 15 Branch Regions 8 Pre-discovered Areas 12 | . 3 . 1 1 1 . . . . . 3 2 . 1 . Known Exits Taken 10 | . 1 1 1 . . 1 1 . 1 . 1 1 1 1 . Unknown Exits Taken 3 | 1 . . . 1 1 . . . . . . . . . . Scrap Searched 10 | . . 1 . . . . . . . . . 4 2 3 . Spaces Dug 90 | . 4 . 4 . . 53 . 21 . 7 . 1 . . . Terrain Destroyed 298 | . 24 . 13 24 . 95 34 47 4 12 32 1 . . 12 Melee 5 | . . . . . . . . 3 . 1 . 1 . . . Projectile 19 | . . . . . . . . 2 4 . 1 . . . 12 AOE 274 | . 24 . 13 24 . 95 34 42 . 11 31 . . . . Terrain Rammed 1 | . . . . . . . . . . . . . . 1 . Walls Destroyed . | . . . . . . . . . . . . . . . . Machines Disabled . | . . . . . . . . . . . . . . . . Actions | -11 -10 -10 -9 -9 -9 -8 -8 -8 -8 -8 -7 -7 -7 -7 -7 --------- Run | Yrd Mat Min Mat Min Exi Min Mat Gar Mat Gar Fac Low Low Zio Dee Total 9252 | 79 1234 573 865 390 378 388 707 903 257 413 552 663 239 937 674 Wait 620 | 17 145 2 89 7 . 9 198 60 28 14 23 4 . 9 15 Move 7785 | 48 977 560 652 358 372 354 414 689 188 307 461 632 238 901 634 Hop . | . . . . . . . . . . . . . . . . Pick Up 94 | 2 19 1 12 1 2 . 9 6 5 4 18 5 . 6 4 Fast Attach 36 | 7 3 . 7 . . . 1 . . 3 2 5 . 1 7 Attach 33 | . 2 . 3 . . 1 2 2 . 7 3 3 . 5 5 Detach 5 | . 1 . . . . . . . . . . 1 . 1 2 Swap 97 | . 8 . 15 5 2 5 17 19 8 7 6 3 . 2 . Drop 119 | . 9 1 25 4 2 . 14 9 10 6 14 9 . 10 6 Fire 360 | 5 59 . 60 13 . 18 52 84 15 30 23 . . . 1 Melee 43 | . . . . . . . . 17 . 24 . 1 . 1 . Ram 1 | . . . . . . . . . . . . . . 1 . Kick . | . . . . . . . . . . . . . . . . Crush 31 | . 11 9 2 2 . 1 . 1 3 . 2 . . . . Escape Stasis 18 | . . . . . . . . 14 . 4 . . . . . Rewire 10 | . . . . . . . . 2 . 7 . . 1 . . Trap . | . . . . . . . . . . . . . . . . Miscellaneous . | . . . . . . . . . . . . . . . . Route ------- -11/Scrapyard -10/Materials (discovered 6 exits: *Mat x3 / *Min x2 / *Sub) -10/Mines (discovered 3 exits: *Mat x2 / *Sub) -9/Materials (discovered 5 exits: *Mat x3 / *Min x2) -9/Mines (discovered 4 exits: *Mat x2 / *Exi / *Zio) -9/Exiles -8/Mines -8/Materials (discovered 4 exits: *Fac x3 / Gar) -8/Garrison (discovered 3 exits: *Mat x3) -8/Materials (discovered 2 exits: *Fac / Gar) -8/Garrison (discovered 2 exits: *Fac / [*Mat]) -7/Factory (discovered 5 exits: *Fac x2 / Sto / *Low x2) -7/Lower Caves -7/Lower Caves -7/Zion (discovered 2 exits: *Dee / *Pro) -7/Deep Caves History --------- Turn | Location | Event 15 | -11/Scrapyard | Discovered new exit (range 16) 121 | -11/Scrapyard | Entered Materials 254 | -10/Materials | Discovered new exit (range 10) 302 | -10/Materials | Build established: Mutant 500 | -10/Materials | Discovered new exit (range 15) 518 | -10/Materials | Destroyed 7 combat bots 631 | -10/Materials | Identified exit to Mines 911 | -10/Materials | Discovered new exit (range 13) 966 | -10/Materials | Repaired Lgt. Treads 1325 | -10/Materials | Core integrity fell below 50% 1390 | -10/Materials | Discovered new exit (range 16) 1592 | -10/Materials | Central database locked down 1628 | -10/Materials | Discovered new exit (range 10) 1631 | -10/Materials | Learned location of 1 exit from Storage 1692 | -10/Materials | Learned location of 2 exits from Mines 1741 | -10/Materials | Learned location of 1 exit from Storage 1780 | -10/Materials | Learned location of Mines (-8) 1811 | -10/Materials | Learned location of 2 exits from Materials 1845 | -10/Materials | Learned location of Mines (-9) 1866 | -10/Materials | Loaded intel: 1 trap record 1896 | -10/Materials | Learned location of Mines (-10) 1937 | -10/Materials | Learned 4 Subcaves zone layouts 2058 | -10/Materials | Entered Mines 2059 | -10/Mines | Identified exit to Materials 2059 | -10/Mines | Identified exit to Subcaves 2171 | -10/Mines | Met a Derelict who couldn't figure out how to use a Trap Extractor 2342 | -10/Mines | Learned 2 Materials zone layouts 2353 | -10/Mines | Discovered exit to Materials (range 12) 2836 | -10/Mines | Received a Mining Laser from a helpful Derelict 2972 | -10/Mines | Entered Materials 2972 | -9/Materials | Accompanied by 1 ally 2972 | -9/Materials | Evolved 2 slots: Utility x2 2973 | -9/Materials | Identified exit to Mines 2973 | -9/Materials | Identified exit to Materials 3436 | -9/Materials | Build established: Scavenger-Mutant 3651 | -9/Materials | Repaired Hvy. Assault Rifle 3940 | -9/Materials | Central database locked down 4015 | -9/Materials | Learned location of 1 exit from Storage 4063 | -9/Materials | Learned Storage non-interactive machine intel 4069 | -9/Materials | Learned location of 1 exit from Recycling 4071 | -9/Materials | Learned 2 Storage zone layouts 4103 | -9/Materials | Learned Storage security intel 4227 | -9/Materials | Repaired Imp. Heat Sink 4334 | -9/Materials | Entered Mines 4526 | -9/Mines | Joined a pair of Derelicts in attacking an 0b10 outpost 4670 | -9/Mines | Learned location of Zion (-7) 4778 | -9/Mines | A Derelict revealed a hidden shortcut to a safe place 4862 | -9/Mines | A weapon hastily lodged in a ceiling crevice suddenly fell to the ground 4897 | -9/Mines | Deemed a non-threat by the Exiles lab entrance 4897 | -9/Mines | Discovered new exit (range 5) 4963 | -9/Mines | Entered Exiles 4963 | -9/Exiles | Accompanied by 2 allies 4993 | -9/Exiles | Led the pair of lost Derelicts to a safe place 5003 | -9/Exiles | Met 8R-AWN 5029 | -9/Exiles | Met EX-HEX 5104 | -9/Exiles | Met EX-DEC 5180 | -9/Exiles | Build established: Hacker-Mutant 5395 | -9/Exiles | Met EX-BIN 5438 | -9/Exiles | Aligned with FarCom system 5441 | -9/Exiles | Given EX-Vault access code 5501 | -9/Exiles | Opened EX-Vault 5518 | -9/Exiles | Found AWS/Autocannon 5571 | -9/Exiles | Warned to stay clear of 0b10 Research branches 5715 | -9/Exiles | Discovered new exit (range 14) 5744 | -9/Exiles | Left Exiles lab with AWS/Autocannon 5744 | -9/Exiles | Entered Mines 5761 | -8/Mines | Discovered exit to Materials (range 11) 6659 | -8/Mines | Entered Materials 6659 | -8/Materials | Evolved 2 slots: Propulsion x1, Weapon x1 6947 | -8/Materials | Build established: Scavenger-Skirmisher 7054 | -8/Materials | Identified exit to Factory 7635 | -8/Materials | Garrison activated, responded to threat 7728 | -8/Materials | Identified exit to Garrison 7728 | -8/Materials | Entered Garrison 7808 | -8/Garrison | Triggered checkpoint 7839 | -8/Garrison | Garrison Relay disabled 8016 | -8/Garrison | Triggered checkpoint 8100 | -8/Garrison | Triggered checkpoint 8179 | -8/Garrison | Discovered new exit (range 10) 8248 | -8/Garrison | Triggered checkpoint 8257 | -8/Garrison | Garrison Relay disabled 8386 | -8/Garrison | Learned Materials security intel 8479 | -8/Garrison | Triggered checkpoint 8642 | -8/Garrison | Triggered checkpoint 8694 | -8/Garrison | Garrison Relay disabled 8774 | -8/Garrison | Discovered new exit (range 13) 8985 | -8/Garrison | Core integrity fell below 50% 9210 | -8/Garrison | Triggered checkpoint 9336 | -8/Garrison | Discovered new exit (range 13) 9340 | -8/Garrison | Triggered checkpoint 9375 | -8/Garrison | Garrison Relay disabled 9492 | -8/Garrison | Entered Materials 9492 | -8/Materials | Accompanied by 2 allies 9746 | -8/Materials | Discovered exit to Factory (range 10) 9826 | -8/Materials | Repaired Rocket Launcher 10045 | -8/Materials | Identified exit to Garrison 10045 | -8/Materials | Entered Garrison 10143 | -8/Garrison | Triggered checkpoint 10176 | -8/Garrison | Garrison Relay disabled 10350 | -8/Garrison | Destroyed 10 combat bots 10357 | -8/Garrison | Triggered checkpoint 10431 | -8/Garrison | Triggered checkpoint 10482 | -8/Garrison | Garrison Relay disabled 10626 | -8/Garrison | Discovered exit to Factory (range 12) 10641 | -8/Garrison | Triggered checkpoint 10656 | -8/Garrison | Discovered new exit (range 5) 10710 | -8/Garrison | Core integrity fell below 20% 10737 | -8/Garrison | Lost 3 parts (1n2u) 10771 | -8/Garrison | Entered Factory 10771 | -7/Factory | Accompanied by 2 allies 10771 | -7/Factory | Evolved 2 slots: Propulsion x1, Utility x1 10772 | -7/Factory | Identified exit to Storage 11064 | -7/Factory | Build established: Hacker-Skirmisher 11093 | -7/Factory | Discovered new exit (range 15) 11204 | -7/Factory | Identified exit to Lower Caves 11488 | -7/Factory | Identified exit to Factory 11527 | -7/Factory | Learned location of Extension (-6) 11558 | -7/Factory | Learned location of 2 exits from Upper Caves 11577 | -7/Factory | Learned location of Upper Caves (-4) 11587 | -7/Factory | Learned 2 Extension zone layouts 11589 | -7/Factory | Learned Extension trap positions 11622 | -7/Factory | Learned Extension emergency access door positions 11635 | -7/Factory | Entered Lower Caves 11636 | -7/Lower Caves | Identified exit to Lower Caves 11641 | -7/Lower Caves | Met a Warlord Commander 11642 | -7/Lower Caves | Learned location of Warlord (-5) 11643 | -7/Lower Caves | Warlord Commander delivered Encrypted Comm Array 11648 | -7/Lower Caves | Found Encrypted Comm Array 12509 | -7/Lower Caves | Found Alien Artifact 12509 | -7/Lower Caves | Identified Core Expander 12509 | -7/Lower Caves | Installed Core Expander, added new Utility slot 13056 | -7/Lower Caves | Entered another Lower Caves area 13602 | -7/Lower Caves | Discovered new exit (range 9) 13626 | -7/Lower Caves | Identified exit to Zion 13629 | -7/Lower Caves | Entered Zion 13733 | -7/Zion | Given the Hacking Drone Bay 13737 | -7/Zion | Found Prototype Device 13760 | -7/Zion | Acquired unknown access codes intercepted by a Zionite 13789 | -7/Zion | Discovered new exit (range 8) 13805 | -7/Zion | Identified exit to Proximity Caves 14023 | -7/Zion | Build established: Tank 14784 | -7/Zion | Rebuked by Imprinter 14940 | -7/Zion | Learned location of Storage (-7) 15625 | -7/Zion | Gained Derelict followers 15774 | -7/Zion | Opened final containment barrier to the Deep Caves 15813 | -7/Zion | Discovered new exit (range 3) 15813 | -7/Zion | Saw the warning signs outside the Deep Caves entrance 15815 | -7/Zion | Identified exit to Deep Caves 15824 | -7/Zion | Entered Deep Caves 15824 | -7/Deep Caves | Accompanied by 2 allies 16173 | -7/Deep Caves | Attacked by Z-Imprinter 16219 | -7/Deep Caves | Destroyed Z-Imprinter 16244 | -7/Deep Caves | Lost 3 parts (2n1u) 16285 | -7/Deep Caves | Z-Facility disabled 16433 | -7/Deep Caves | Found Prototype Protection 16433 | -7/Deep Caves | Identified Zio. Weapon Casing 16448 | -7/Deep Caves | Lost 5 parts (1p2n2u) 16691 | -7/Deep Caves | Found Surveybot 24 Scanner 16695 | -7/Deep Caves | Found Surveybot 24 Chip 16707 | -7/Deep Caves | Build established: Skirmisher 17474 | -7/Deep Caves | Identified Hacking Drone Bay 17663 | -7/Deep Caves | Spotted AG-85531 17663 | -7/Deep Caves | Exposed GOLEM chamber 17664 | -7/Deep Caves | Triggered Deep Caves wall 17689 | -7/Deep Caves | Core integrity fell below 50% 17692 | -7/Deep Caves | Released all parts (7) 17696 | -7/Deep Caves | Core integrity fell below 20% 17696 | -7/Deep Caves | Destroyed by as-70260 with Assembled Gauss Rifle Last Messages --------------- complete. 17692_ AG-85531 GOLEM Unit beginning Prototype Energy Cannon integration. 17692_ Released AWS/Autocannon. 17692_ Released Med. Treads. 17692_ Released Hcp. Storage Unit. 17692_ Released Imp. Signal Interpreter. 17692_ Released Exp. Heat Sink. 17692_ Released Zio. Light DM Reactor. 17692_ Released Imp. Light Armor Plating. 17692_ Dropped Enh. Autogun. 17692_ HV Slug penetrates Wall Chamber. 17692_ Dropped Enh. Autogun. 17693_ GOLEM Unit springs to life. 17693_ Acquired Surveybot 24 Chip. 17694_ AG-02441 GOLEM Unit beginning Prototype Leg integration. 17694_ Penetrated by Slug. 17695_ Acquired Surveybot 24 Scanner. 17696_ as-81049 destroyed. Map ----- +----------------------------------------------------+ | ?????????????????????????????# | | ?????????????????????????????# | | ?????????????????????????????# ##### | | ?????????????????????????????# ##### | | ?????????????????????????????# | | ?????????????????????????????# | | ?????????????????????????????## ######## | | ??????????????????????????????####??????# | | ?????????????????????????????????????#### | | ????????????? ! ??????????????????# | | ??????????? / / ??????????# | | ???????? * ! ##????????## | | ??????? a ! #?????????# | | ??????? aa a s #?????????## | | ???????? aa a / #??????????## | | ????????? M / #???????????# | | ?????????"aa aa * #???????????# | | ?????????" % a #???????????# | | ????????"" a #???????????? | | ???????"" a !a ###???????### | | ???????"GG !! !* ;#?####### | | ????????# %% a #?## ## | | ????????" %! aa a #?# | | ????????" [![* % ah ### | | ????????" G []% a a | | ????????""" ]@]!!a | | ????????" /]=!] s ### | | ????????"" [![] ;#####?## | | ????????" ##??????# | | ????????"" ##???????# | | ????????" # # #????????## | | ????????" #### ## ## ##?????????### | | ????????""" ##???# ## ####????????????? | | ?????????" ?????#### #???????????????? | | ?????????#####?????????#????????????????? | | | | | | | | | | | | | | | | | | | | | | | | | | | | | | | +----------------------------------------------------+ Best States ------------- Heat Dissipation 60 Energy Generation 27 Energy Capacity 290 Matter Stores 300 Matter Capacity 300 Sight Range 16 Robot Scan Range 15 Terrain Scan Range 16 Terrain Scan Density 10 Jamming Range 12 Armor Coverage 375 Weapon Shielding 100 Evasion (%) 40 Recoil Reduction 4 Offensive Hacking 20 Defensive Hacking 10 Item Schematics ----------------- Hcp. Storage Unit | -10/Materials | Hacked Structural Scanner | -10/Mines | Hacked Hacking Suite | -9/Materials | Scanalyzed Kinecellerator | -7/Zion | Archive Adv. Terrain Scanner | -7/Zion | Archive Plasma Cannon | -7/Zion | Archive Adv. Heat Sink | -7/Zion | Archive Hvy. Ion Cannon | -7/Zion | Archive Matter Compressor | -7/Zion | Archive Med. Treads | -7/Zion | Archive Adv. Cooling System | -7/Zion | Archive Imp. Transmission Jammer | -7/Zion | Archive Matter Filter | -7/Zion | Archive Arm. Leg | -7/Zion | Archive Imp. Medium Armor Plating | -7/Zion | Archive Imp. Target Analyzer | -7/Zion | Archive Fusion Compressor | -7/Zion | Archive Tiamat Missile Launcher | -7/Zion | Archive Robot Schematics ------------------ K-01 Serf | -7/Zion | Archive R-06 Scavenger | -7/Zion | Archive Fabricated ------------ Nothing Repaired ---------- Lgt. Treads | 50% | -10/Materials Hvy. Assault Rifle | 35% | -9/Materials Imp. Heat Sink | 45% | -9/Materials Rocket Launcher | 50% | -8/Materials Studied --------- Particle Cannon | -9/Materials | Hacked Beam Cannon | -9/Materials | Hacked Alien Tech Used ----------------- Core Expander Achievements -------------- None Challenges ------------ None Game ------ Seed ChromaticDeliveryShredder Manual? 0 Play Time 01:14:58 Cumulative 233.5 hours Start 2025.12.10 @ 21:46:49 End 2025.12.10 @ 23:01:40 Sessions 1 Manual Loads 0 Difficulty Rogue Special Mode None Game No. 158 Rogue 158 Adventurer 0 Explorer 0 Win Type - Total 7 Types 5/0/1/1/0/0/0/0/0/0 Lore% 85 Gallery% 77 Achievement% 61 Wizard Run 0 Options --------- Layout 1 ASCII 0 Keyboard 0 Movement Mouse Keybinds 0 Fullscreen 2 Font 24/Smallcaps Map View 50x35 Zoom Use 0% Tactical HUD 1 Map Filters NONE Filters NONE Steam 1 RUN: 48d5aee1-ffcd-46fe-b382-126a45bb5e06